[Event "DVM U14 2021"]
[Site "Willingen"]
[Date "2022.08.13"]
[Round "2"]
[White "Reus, Nicholas"]
[Black "Bungarten, Jona"]
[Result "0-1"]
[ECO "D32"]
[WhiteElo "1663"]
[BlackElo "1834"]
[Annotator "NA RC COMBH"]
[PlyCount "92"]
[EventDate "2022.08.12"]
[EventType "team-tourn"]
[EventRounds "7"]
[EventCountry "GER"]
[SourceTitle "playchess.com"]
[Source "ChessBase"]
[SourceQuality "1"]
[TimeControl "40/5400+30:1800+30"]

1. c4 {[%emt 0:00:09]} e6 {[%emt 0:00:00]} 2. Nc3 {[%emt 0:00:06]} d5 {[%emt 0:00:04]} 3. d4 {[%emt 0:00:14]} c5 {[%emt 0:01:04]} 4. e3 {[%emt 0:00:36]} Nf6 {[%emt 0:00:18]} 5. Nf3 {[%emt 0:00:26]} a6 {[%emt 0:00:20]} 6. cxd5 {[%emt 0:00:07]} exd5 {[%emt 0:00:56]} 7. dxc5 {[%emt 0:00:11]} Bxc5 {[%emt 0:00:25]} 8. Be2 {[%emt 0:00:15]} O-O {[%emt 0:00:13]} 9. O-O {[%emt 0:00:17]} Nc6 {[%emt 0:01:26]} 10. a3 {[%emt 0:02:40]} Qd6 {[%emt 0:01:16]} 11. Nd4 {[%emt 0:01:08]} Bb6 {[%emt 0:04:17]} 12. f4 {[%emt 0:01:54]} Re8 {[%emt 0:01:22]} 13. Rf3 {[%emt 0:03:13]} Bg4 {[%emt 0:01:36]} 14. Rg3 {[%emt 0:01:42]} Bxe2 {[%emt 0:00:42]} 15. Ncxe2 {[%emt 0:02:38]} Qd7 {[%emt 0:04:25]} 16. Qd3 {[%emt 0:01:20]} Ne4 {[%emt 0:01:54]} 17. Rh3 {[%emt 0:03:54]} Rac8 {[%emt 0:04:19]} 18. b3 {[%emt 0:00:40]} Nxd4 {[%emt 0:04:57]} 19. exd4 {[%emt 0:02:23]} Qg4 {[%emt 0:09:59]} 20. Rf3 {[%emt 0:04:28]} Re6 {[%emt 0:02:19]} 21. f5 {[%emt 0:01:40]} Rec6 {[%emt 0:04:05]} 22. h3 {[%emt 0:02:07]} Qh4 {[%emt 0:00:49]} 23. Be3 {[%emt 0:03:35]} Rc2 {[%emt 0:02:02]} 24. Rc1 {[%emt 0:00:29]} Rxc1+ {[%emt 0:03:33]} 25. Bxc1 {[%emt 0:05:58]} Qf6 {[%emt 0:00:47]} 26. Be3 {[%emt 0:01:02]} Qd6 {[%emt 0:03:03]} 27. a4 {[%emt 0:01:11]} Qa3 {[%emt 0:03:45]} 28. f6 {[%emt 0:02:47]} Nxf6 {[%emt 0:01:26]} 29. Rxf6 {[%emt 0:01:20]} gxf6 {[%emt 0:03:17]} 30. Bh6 {[%emt 0:02:56]} Qd6 {[%emt 0:04:27]} 31. Qf3 {[%emt 0:03:02]} f5 {[%emt 0:00:25]} 32. Qxf5 {[%emt 0:00:31]} Re8 {[%emt 0:07:09]} 33. Qg5+ {[%emt 0:00:23]} Qg6 {[%emt 0:00:42]} 34. Kf2 {[%emt 0:00:36]} Qxg5 {[%emt 0:00:09]} 35. Bxg5 {[%emt 0:00:08]} Kg7 {[%emt 0:00:48]} 36. Be3 {[%emt 0:03:39]} Rc8 {[%emt 0:05:22]} 37. Nf4 {[%emt 0:00:34]} Rc3 {[%emt 0:00:56]} 38. Nxd5 {[%emt 0:00:08]} Rxb3 {[%emt 0:00:33]} 39. Nxb6 {[%emt 0:00:07]} Rxb6 {[%emt 0:00:58]} 40. Bd2 {[%emt 0:00:16]} Kf6 {[%emt 0:00:17]} 41. a5 {[%emt 0:30:11]} Rb3 {[%emt 0:31:10]} 42. h4 {[%emt 0:00:08]} Kf5 {[%emt 0:01:29]} 43. h5 {[%emt 0:00:08]} Ke4 {[%emt 0:00:27]} 44. g4 {[%emt 0:00:12]} Kxd4 {[%emt 0:00:21]} 45. g5 {[%emt 0:00:12]} Rh3 {[%emt 0:00:39]} 46. Kg2 {[%emt 0:00:04]} Rxh5 0-1

[Event "DVM U14 2021"]
[Site "Willingen"]
[Date "2022.08.13"]
[Round "2"]
[White "Herfurt, Manuel"]
[Black "Krüger, Arthur"]
[Result "0-1"]
[ECO "D02"]
[WhiteElo "1656"]
[BlackElo "1996"]
[Annotator "TA"]
[PlyCount "82"]
[EventDate "2022.08.12"]
[EventType "team-tourn"]
[EventRounds "7"]
[EventCountry "GER"]
[SourceTitle "playchess.com"]
[Source "ChessBase"]
[SourceQuality "1"]
[TimeControl "40/5400+30:1800+30"]

{[%evp 9,82,0,36,15,13,-6,43,35,35,37,47,40,43,51,50,8,33,25,33,26,25,41,35,37,53,53,53,33,62,67,52,60,99,20,119,119,118,14,18,6,27,0,0,0,0,0,0,0,0,0,0,-20,-18,-43,-27,-88,-90,-125,-131,-127,-98,-90,-43,-635,-619,-29960,-29959,-6774,-5347,-29974,-29972,-29982,-29983,-29983,-29984]} 1. d4 {[%emt 0:00:02]} d5 {[%emt 0:00:09]} 2. Nf3 {[%emt 0:00:32]} Nf6 {[%emt 0:00:24]} 3. Bf4 {[%emt 0:00:26]} e6 {[%emt 0:00:26]} 4. e3 {[%emt 0:00:51]} c5 {[%emt 0:00:35]} 5. Be2 {[%emt 0:04:11]} Bd6 {[%emt 0:01:50]} 6. Bxd6 {[%emt 0:01:30] D02: 1 d4 d5 2 Nf3 sidelines, including 2...Nf6 3 g3 and 2...Nf6 3 Bf4.} Qxd6 {[%emt 0:00:24]} 7. c3 {[%emt 0:03:08]} c4 {[%emt 0:04:37] [#]} (7... O-O $11) 8. b3 $146 {[%emt 0:07:28] White is slightly better.} ({Predecessor:} 8. Nbd2 Nc6 9. O-O O-O 10. h3 h6 11. b3 b5 12. a4 bxa4 13. bxc4 dxc4 14. Nxc4 {0-1 (41) Kuzmanovic,A (2026)-Markovic,V (1253) Serbia 2017}) 8... cxb3 $1 {[%emt 0:03:51]} 9. axb3 {[%emt 0:02:12]} O-O {[%emt 0:02:35]} 10. O-O {[%emt 0:01:16]} Nbd7 {[%emt 0:04:45]} 11. c4 {[%emt 0:09:16]} b6 {[%emt 0:03:35] Against c5} 12. cxd5 {[%emt 0:03:03]} exd5 {[%emt 0:03:56]} 13. Nc3 {[%emt 0:03:02]} a6 {[%emt 0:01:08] Inhibits Nb5.} 14. Qc2 {[%emt 0:10:06]} Bb7 {[%emt 0:01:44]} 15. Rfc1 {[%emt 0:01:15]} Rfc8 {[%emt 0:00:54]} 16. Qb2 {[%emt 0:02:58]} b5 {[%emt 0:01:17]} 17. h3 {[%emt 0:06:54]} Rc6 {[%emt 0:04:52]} 18. Nd1 {[%emt 0:05:01]} Rac8 {[%emt 0:02:58]} 19. Rxc6 {[%emt 0:01:00]} Qxc6 {[%emt 0:00:17]} 20. Ne1 {[%emt 0:04:48]} Qb6 {[%emt 0:06:32]} 21. Rc1 {[%emt 0:04:39]} ({White should try} 21. b4 $16) 21... a5 {[%emt 0:04:13]} (21... Rxc1 $11 22. Qxc1 Ne4) 22. Rxc8+ $16 {[%emt 0:01:41]} Bxc8 {[%emt 0:00:02]} 23. Qc2 {[%emt 0:01:11]} (23. b4 $1 $16) 23... Bb7 $11 {[%emt 0:02:32]} 24. Nc3 {[%emt 0:03:08]} Bc6 {[%emt 0:01:08]} (24... b4 $5 {[%cal Rb4c3]} 25. Na4 Qc6 $11) 25. Qd3 {[%emt 0:01:17][%cal Rc3b5]} b4 {[%emt 0:01:35]} 26. Nb1 {[%emt 0:03:58]} a4 {[%emt 0:03:08]} 27. bxa4 {[%emt 0:00:24]} Bxa4 {[%emt 0:00:45]} 28. Qa6 {[%emt 0:01:49]} Qxa6 {[%emt 0:00:14]} 29. Bxa6 {[%emt 0:00:09]} Ne4 {[%emt 0:06:17]} 30. Kf1 {[%emt 0:06:11]} Nb6 {[%emt 0:02:55]} 31. Bd3 {[%emt 0:01:08]} Nc4 {[%emt 0:01:55]} 32. Ke2 {[%emt 0:01:37]} (32. Nc2 $1 $11) 32... Na3 $1 $17 {[%emt 0:01:25] White must now prevent ...Nxb1. Black is much more active. The white rooks are badly placed.} 33. f3 {[%emt 0:04:13]} Nxb1 {[%emt 0:03:32]} 34. fxe4 {[%emt 0:00:54][%mdl 4096] Endgame KBN-KBN} Nc3+ {[%emt 0:00:59]} 35. Kd2 {[%emt 0:01:03]} ({Avoid the trap} 35. Kf3 $2 dxe4+ 36. Bxe4 Bd1+ 37. Kf4 Nxe4 $19) 35... Nxe4+ {[%emt 0:02:05]} (35... dxe4 $17 36. Bc4 Bc6) 36. Bxe4 {[%emt 0:01:02][%mdl 8192] Loses the game.} (36. Kc1 $15) 36... dxe4 $19 {[%emt 0:00:13][%cal Bd5e4,Be4f3][%mdl 32]} 37. Nc2 {[%emt 0:00:36]} Bxc2 {[%emt 0:01:08]} ({Not} 37... b3 38. Na3 $15) 38. Kxc2 $17 {[%emt 0:00:04] [#] KP-KP} f5 $1 {[%emt 0:00:09][%cal Of5f4] ( -> ...f4!)} 39. Kb3 {[%emt 0:03:47] [#]} f4 $1 {[%emt 0:00:33] Black mates.} 40. Kxb4 {[%emt 0:00:16]} f3 {[%emt 0:00:15]} 41. gxf3 {[%emt 0:30:12]} exf3 {[%emt 0:30:12] Weighted Error Value: White=0.70/Black=0.12 (very precise)} 0-1

[Event "DVM U14 2021"]
[Site "Willingen"]
[Date "2022.08.13"]
[Round "2"]
[White "Gold, Jan Christian"]
[Black "Vecera, Fabio"]
[Result "1-0"]
[ECO "D90"]
[WhiteElo "1638"]
[BlackElo "1527"]
[Annotator "NA RC COMBH"]
[PlyCount "35"]
[EventDate "2022.08.12"]
[EventType "team-tourn"]
[EventRounds "7"]
[EventCountry "GER"]
[SourceTitle "playchess.com"]
[Source "ChessBase"]
[SourceQuality "1"]
[TimeControl "40/5400+30:1800+30"]

1. d4 {[%emt 0:00:05]} Nf6 {[%emt 0:00:00]} 2. c4 {[%emt 0:00:07]} g6 {[%emt 0:00:00]} 3. Nc3 {[%emt 0:00:06]} d5 {[%emt 0:00:50]} 4. Bf4 {[%emt 0:00:44]} Bg7 {[%emt 0:00:19]} 5. Nf3 {[%emt 0:00:07]} c6 {[%emt 0:00:14]} 6. e3 {[%emt 0:00:23]} O-O {[%emt 0:00:19]} 7. cxd5 {[%emt 0:00:54]} cxd5 {[%emt 0:00:27]} 8. Bd3 {[%emt 0:04:18]} Nc6 {[%emt 0:01:16]} 9. a3 {[%emt 0:06:50]} e6 {[%emt 0:00:08]} 10. O-O {[%emt 0:04:02]} a6 {[%emt 0:00:02]} 11. Rc1 {[%emt 0:04:56]} Nh5 {[%emt 0:03:04]} 12. Bg5 {[%emt 0:01:09]} f6 {[%emt 0:00:07]} 13. Bh4 {[%emt 0:00:17]} g5 {[%emt 0:00:54]} 14. Nxg5 {[%emt 0:00:12]} fxg5 {[%emt 0:00:02]} 15. Qxh5 {[%emt 0:00:15]} gxh4 {[%emt 0:00:02]} 16. Bxh7+ {[%emt 0:00:37]} Kh8 {[%emt 0:00:02]} 17. Bg6+ {[%emt 0:00:52]} Kg8 18. Qh7# {[%emt 0:01:45]} 1-0

[Event "DVM U14 2021"]
[Site "Willingen"]
[Date "2022.08.13"]
[Round "2"]
[White "Chugunov, Ivan"]
[Black "Kiefhaber, Tobias"]
[Result "1-0"]
[ECO "B16"]
[WhiteElo "1630"]
[BlackElo "1581"]
[Annotator "NA RC COMBH"]
[PlyCount "85"]
[EventDate "2022.08.12"]
[EventType "team-tourn"]
[EventRounds "7"]
[EventCountry "GER"]
[SourceTitle "playchess.com"]
[Source "ChessBase"]
[SourceQuality "1"]
[TimeControl "40/5400+30:1800+30"]

1. e4 {[%emt 0:00:11]} c6 {[%emt 0:00:05]} 2. d4 {[%emt 0:00:48]} d5 {[%emt 0:00:14]} 3. Nc3 {[%emt 0:00:47]} dxe4 {[%emt 0:00:36]} 4. Nxe4 {[%emt 0:00:46]} Nf6 {[%emt 0:00:52]} 5. Nxf6+ {[%emt 0:00:34]} gxf6 {[%emt 0:00:09]} 6. c3 {[%emt 0:03:00]} Bf5 {[%emt 0:00:45]} 7. Bf4 {[%emt 0:01:17]} e6 {[%emt 0:05:16]} 8. Bd3 {[%emt 0:02:47]} Bg6 {[%emt 0:01:24]} 9. Nf3 {[%emt 0:02:08]} Bd6 {[%emt 0:00:28]} 10. Bg3 {[%emt 0:00:52]} Qc7 {[%emt 0:00:42]} 11. Nh4 {[%emt 0:01:02]} Nd7 {[%emt 0:02:43]} 12. a4 {[%emt 0:03:27]} c5 {[%emt 0:02:25]} 13. dxc5 {[%emt 0:01:04]} Bxg3 {[%emt 0:01:56]} 14. hxg3 {[%emt 0:01:48]} Bxd3 {[%emt 0:02:05]} 15. Qxd3 {[%emt 0:01:01]} Qe5+ {[%emt 0:01:22]} 16. Kf1 {[%emt 0:00:27]} Qxc5 {[%emt 0:03:20]} 17. Nf3 {[%emt 0:00:51]} f5 {[%emt 0:02:00]} 18. Nd4 {[%emt 0:05:33]} O-O-O {[%emt 0:01:48]} 19. Rh4 {[%emt 0:01:40]} Nf6 {[%emt 0:02:49]} 20. Qb5 {[%emt 0:03:52]} Ne4 {[%emt 0:03:56]} 21. f3 {[%emt 0:06:52]} Qxb5+ {[%emt 0:03:22]} 22. axb5 {[%emt 0:02:00]} Nxg3+ {[%emt 0:01:05]} 23. Kf2 {[%emt 0:00:31]} e5 {[%emt 0:00:59]} 24. Kxg3 {[%emt 0:08:22]} f4+ {[%emt 0:00:49]} 25. Kh3 {[%emt 0:07:39]} exd4 {[%emt 0:00:11]} 26. Rxf4 {[%emt 0:02:29]} d3 {[%emt 0:00:22]} 27. Rd1 {[%emt 0:03:07]} Rhe8 {[%emt 0:00:41]} 28. Rc4+ {[%emt 0:02:27]} Kb8 {[%emt 0:00:20]} 29. b4 {[%emt 0:03:30]} Rd5 {[%emt 0:04:31]} 30. g4 {[%emt 0:08:10]} d2 {[%emt 0:04:28]} 31. Rd4 {[%emt 0:06:19]} Red8 {[%emt 0:00:28]} 32. R1xd2 {[%emt 0:03:45]} Rxd4 {[%emt 0:03:11]} 33. Rxd4 {[%emt 0:01:47]} Rxd4 {[%emt 0:00:55]} 34. cxd4 {[%emt 0:00:07]} Kc7 {[%emt 0:00:15]} 35. Kh4 {[%emt 0:01:55]} Kb6 {[%emt 0:00:47]} 36. Kg5 {[%emt 0:01:17]} Kxb5 {[%emt 0:00:42]} 37. d5 {[%emt 0:00:23]} a5 {[%emt 0:00:54]} 38. bxa5 {[%emt 0:00:52]} Kc5 {[%emt 0:03:19]} 39. Kf6 {[%emt 0:02:31]} Kxd5 {[%emt 0:00:33]} 40. f4 {[%emt 0:00:39]} Kc5 {[%emt 0:00:27]} 41. Kxf7 {[%emt 0:30:18]} Kb5 {[%emt 0:30:05]} 42. f5 {[%emt 0:00:06]} Kxa5 {[%emt 0:00:07]} 43. Kg7 {[%emt 0:00:17]} 1-0

[Event "DVM U14 2021"]
[Site "Willingen"]
[Date "2022.08.13"]
[Round "2"]
[White "Bolz, Jannis"]
[Black "Gering, Jakob"]
[Result "0-1"]
[ECO "D96"]
[WhiteElo "1616"]
[BlackElo "1349"]
[Annotator "NA RC COMBH"]
[PlyCount "56"]
[EventDate "2022.08.12"]
[EventType "team-tourn"]
[EventRounds "7"]
[EventCountry "GER"]
[SourceTitle "playchess.com"]
[Source "ChessBase"]
[SourceQuality "1"]
[TimeControl "40/5400+30:1800+30"]

1. d4 {[%emt 0:00:03]} Nf6 {[%emt 0:00:13]} 2. c4 {[%emt 0:00:18]} g6 {[%emt 0:00:11]} 3. Nc3 {[%emt 0:00:13]} d5 {[%emt 0:00:23]} 4. Qb3 {[%emt 0:00:06]} c6 {[%emt 0:01:58]} 5. Nf3 {[%emt 0:01:27]} Bg7 {[%emt 0:00:51]} 6. Bg5 {[%emt 0:00:35]} Ne4 {[%emt 0:05:18]} 7. Bf4 {[%emt 0:07:46]} O-O {[%emt 0:05:05]} 8. e3 {[%emt 0:01:09]} b6 {[%emt 0:03:31]} 9. Nxe4 {[%emt 0:12:41]} dxe4 {[%emt 0:00:53]} 10. Ng5 {[%emt 0:00:44]} Bf5 {[%emt 0:04:08]} 11. Qc2 {[%emt 0:00:11]} c5 {[%emt 0:01:41]} 12. dxc5 {[%emt 0:02:42]} bxc5 {[%emt 0:01:28]} 13. Be2 {[%emt 0:25:35]} Qa5+ {[%emt 0:11:29]} 14. Kf1 {[%emt 0:03:31]} h6 {[%emt 0:04:20]} 15. Nxe4 {[%emt 0:00:22]} Nc6 {[%emt 0:03:54]} 16. f3 {[%emt 0:05:10]} Nb4 {[%emt 0:03:59]} 17. Qb1 {[%emt 0:03:54]} g5 {[%emt 0:04:17]} 18. Bg3 {[%emt 0:00:17]} Bxe4 {[%emt 0:05:08]} 19. fxe4 {[%emt 0:00:14]} Qa4 {[%emt 0:04:56]} 20. Bd1 {[%emt 0:06:48]} Qd7 {[%emt 0:05:56]} 21. Be1 {[%emt 0:12:27]} Qe6 {[%emt 0:04:00]} 22. Be2 {[%emt 0:04:43]} Nc6 {[%emt 0:08:07]} 23. g4 {[%emt 0:04:47]} Ne5 {[%emt 0:02:27]} 24. Qc1 {[%emt 0:03:49]} Nxg4 {[%emt 0:02:18]} 25. Bd3 {[%emt 0:00:57]} Ne5 {[%emt 0:02:18]} 26. Qc2 {[%emt 0:00:42]} Qh3+ {[%emt 0:01:14]} 27. Ke2 {[%emt 0:00:20]} Qf3+ {[%emt 0:01:11]} 28. Kd2 {[%emt 0:00:46]} Qxh1 {[%emt 0:00:50]} 0-1

[Event "DVM U14 2021"]
[Site "Willingen"]
[Date "2022.08.13"]
[Round "2"]
[White "Mehner, Lorenz"]
[Black "Prinzen, Siri Marleen"]
[Result "1-0"]
[ECO "D36"]
[WhiteElo "1602"]
[BlackElo "1801"]
[Annotator "NA RC COMBH"]
[PlyCount "51"]
[EventDate "2022.08.12"]
[EventType "team-tourn"]
[EventRounds "7"]
[EventCountry "GER"]
[SourceTitle "playchess.com"]
[Source "ChessBase"]
[SourceQuality "1"]
[TimeControl "40/5400+30:1800+30"]

1. d4 {[%emt 0:00:02]} d5 {[%emt 0:00:05]} 2. c4 {[%emt 0:00:07]} e6 {[%emt 0:00:05]} 3. Nc3 {[%emt 0:00:13]} Nf6 {[%emt 0:00:08]} 4. cxd5 {[%emt 0:00:21]} exd5 {[%emt 0:00:08]} 5. Bg5 {[%emt 0:00:10]} Be7 {[%emt 0:00:07]} 6. e3 {[%emt 0:00:33]} c6 {[%emt 0:00:52]} 7. Bd3 {[%emt 0:00:22]} Nbd7 {[%emt 0:00:24]} 8. h3 {[%emt 0:00:48]} O-O {[%emt 0:04:01]} 9. Nf3 {[%emt 0:00:44]} Re8 {[%emt 0:02:26]} 10. Qc2 {[%emt 0:01:38]} Ne4 {[%emt 0:01:14]} 11. Bxe4 {[%emt 0:04:25]} dxe4 {[%emt 0:03:31]} 12. Nxe4 {[%emt 0:01:08]} Qa5+ {[%emt 0:01:00]} 13. Qd2 {[%emt 0:00:42]} Bb4 {[%emt 0:02:23]} 14. Nc3 {[%emt 0:00:36]} Nb6 {[%emt 0:01:46]} 15. O-O {[%emt 0:02:50]} Nd5 {[%emt 0:03:38]} 16. Rfc1 {[%emt 0:04:52]} Nxc3 {[%emt 0:02:01]} 17. bxc3 {[%emt 0:00:23]} Ba3 {[%emt 0:00:37]} 18. Rd1 {[%emt 0:05:49]} Bf5 {[%emt 0:01:57]} 19. Bh4 {[%emt 0:07:50]} Qb5 {[%emt 0:03:53]} 20. Re1 {[%emt 0:03:50]} f6 {[%emt 0:01:40]} 21. Rad1 {[%emt 0:05:34]} Be4 {[%emt 0:01:55]} 22. Bg3 {[%emt 0:03:04]} Rad8 {[%emt 0:05:31]} 23. Nh2 {[%emt 0:06:52]} Qg5 {[%emt 0:06:10]} 24. Nf1 {[%emt 0:04:43]} h5 {[%emt 0:03:04]} 25. h4 {[%emt 0:01:02]} c5 {[%emt 0:03:50]} 26. hxg5 {[%emt 0:00:44]} 1-0

[Event "DVM U14 2021"]
[Site "Willingen"]
[Date "2022.08.13"]
[Round "2"]
[White "Gotfried, Elias"]
[Black "Römer, Uri"]
[Result "0-1"]
[ECO "C55"]
[WhiteElo "1589"]
[BlackElo "1485"]
[Annotator "NA RC COMBH"]
[PlyCount "50"]
[EventDate "2022.08.12"]
[EventType "team-tourn"]
[EventRounds "7"]
[EventCountry "GER"]
[SourceTitle "playchess.com"]
[Source "ChessBase"]
[SourceQuality "1"]
[TimeControl "40/5400+30:1800+30"]

1. e4 {[%emt 0:00:13]} e5 {[%emt 0:00:00]} 2. Nf3 {[%emt 0:00:07]} Nc6 {[%emt 0:00:00]} 3. Bc4 {[%emt 0:00:26]} Nf6 {[%emt 0:00:00]} 4. Nc3 {[%emt 0:00:12]} Nxe4 {[%emt 0:00:26]} 5. Bxf7+ {[%emt 0:00:33]} Kxf7 {[%emt 0:00:05]} 6. Nxe4 {[%emt 0:01:48]} d5 {[%emt 0:02:02]} 7. Neg5+ {[%emt 0:03:44]} Kg8 {[%emt 0:00:27]} 8. d3 {[%emt 0:02:31]} h6 {[%emt 0:00:39]} 9. Nh3 {[%emt 0:00:00]} Bg4 {[%emt 0:03:46]} 10. Nhg1 {[%emt 0:02:01]} e4 {[%emt 0:01:35]} 11. dxe4 {[%emt 0:03:29]} dxe4 {[%emt 0:00:30]} 12. Qxd8 {[%emt 0:00:32]} Rxd8 {[%emt 0:01:49]} 13. Nd2 {[%emt 0:03:35]} Nd4 {[%emt 0:02:21]} 14. Rb1 {[%emt 0:00:46]} Nxc2+ {[%emt 0:00:10]} 15. Kf1 {[%emt 0:01:03]} Bb4 {[%emt 0:01:13]} 16. h3 {[%emt 0:04:23]} Be6 {[%emt 0:06:16]} 17. b3 {[%emt 0:01:15]} Bxd2 {[%emt 0:00:08]} 18. Bxd2 {[%emt 0:00:11]} Rxd2 {[%emt 0:00:46]} 19. g4 {[%emt 0:02:03]} Kh7 {[%emt 0:00:07]} 20. Ne2 {[%emt 0:04:13]} Rf8 {[%emt 0:01:08]} 21. Rh2 {[%emt 0:06:29]} Bd7 {[%emt 0:00:24]} 22. a4 {[%emt 0:01:14]} b5 {[%emt 0:00:34]} 23. Nc3 {[%emt 0:01:58]} e3 {[%emt 0:00:22]} 24. Ne4 {[%emt 0:01:07]} e2+ {[%emt 0:00:31]} 25. Kg1 {[%emt 0:00:10]} Rd1+ 0-1

[Event "DVM U14 2021"]
[Site "Willingen"]
[Date "2022.08.13"]
[Round "2"]
[White "Beyer, Lorenz"]
[Black "Freude, Max"]
[Result "1/2-1/2"]
[ECO "D02"]
[WhiteElo "1587"]
[BlackElo "1819"]
[Annotator "NA RC COMBH"]
[PlyCount "41"]
[EventDate "2022.08.12"]
[EventType "team-tourn"]
[EventRounds "7"]
[EventCountry "GER"]
[SourceTitle "playchess.com"]
[Source "ChessBase"]
[SourceQuality "1"]
[TimeControl "40/5400+30:1800+30"]

1. d4 {[%emt 0:00:06]} Nf6 {[%emt 0:00:00]} 2. Bf4 {[%emt 0:00:12]} d5 {[%emt 0:00:00]} 3. e3 {[%emt 0:00:29]} c5 {[%emt 0:00:00]} 4. c3 {[%emt 0:00:06]} Nc6 {[%emt 0:00:00]} 5. Nf3 {[%emt 0:00:25]} Qb6 {[%emt 0:00:11]} 6. Qc2 {[%emt 0:07:28]} g6 {[%emt 0:00:58]} 7. dxc5 {[%emt 0:00:15]} Qxc5 {[%emt 0:00:50]} 8. Bd3 {[%emt 0:03:16]} Bg7 {[%emt 0:03:30]} 9. Nbd2 {[%emt 0:03:15]} O-O {[%emt 0:06:05]} 10. O-O {[%emt 0:07:13]} Nh5 {[%emt 0:03:07]} 11. Bg5 {[%emt 0:07:57]} f5 {[%emt 0:03:53]} 12. Nb3 {[%emt 0:06:18]} Qb6 {[%emt 0:03:19]} 13. Nfd4 {[%emt 0:04:22]} e5 {[%emt 0:01:18]} 14. Nxc6 {[%emt 0:05:36]} bxc6 {[%emt 0:06:10]} 15. c4 {[%emt 0:05:14]} Be6 {[%emt 0:03:02]} 16. Be7 {[%emt 0:05:17]} Rf7 {[%emt 0:00:39]} 17. Ba3 {[%emt 0:10:30]} Bf8 {[%emt 0:02:07]} 18. Bxf8 {[%emt 0:00:38]} Raxf8 {[%emt 0:13:07]} 19. cxd5 {[%emt 0:00:50]} cxd5 {[%emt 0:04:16]} 20. Qc5 {[%emt 0:16:25]} Rc8 {[%emt 0:06:48]} 21. Qxb6 {[%emt 0:05:15]} 1/2-1/2

[Event "DVM U14 2021"]
[Site "Willingen"]
[Date "2022.08.13"]
[Round "2"]
[White "Widmann, Maximilian"]
[Black "Pichl, Christoph"]
[Result "1-0"]
[ECO "A09"]
[WhiteElo "1573"]
[BlackElo "1617"]
[Annotator "NA RC COMBH"]
[PlyCount "117"]
[EventDate "2022.08.12"]
[EventType "team-tourn"]
[EventRounds "7"]
[EventCountry "GER"]
[SourceTitle "playchess.com"]
[Source "ChessBase"]
[SourceQuality "1"]
[TimeControl "40/5400+30:1800+30"]

1. Nf3 {[%emt 0:00:04]} d5 {[%emt 0:00:07]} 2. c4 {[%emt 0:00:14]} dxc4 {[%emt 0:04:09]} 3. Na3 {[%emt 0:05:00]} Nf6 {[%emt 0:00:30]} 4. Nxc4 {[%emt 0:01:42]} g6 {[%emt 0:00:49]} 5. d4 {[%emt 0:05:12]} Bg7 {[%emt 0:01:45]} 6. g3 {[%emt 0:02:29]} Bg4 {[%emt 0:01:12]} 7. Nce5 {[%emt 0:04:27]} Nbd7 {[%emt 0:03:25]} 8. Bf4 {[%emt 0:10:10]} O-O {[%emt 0:02:56]} 9. Bg2 {[%emt 0:03:40]} c6 {[%emt 0:02:09]} 10. O-O {[%emt 0:08:47]} Bf5 {[%emt 0:00:59]} 11. Re1 {[%emt 0:08:00]} Nd5 {[%emt 0:10:31]} 12. Nxd7 {[%emt 0:05:42]} Bxd7 {[%emt 0:00:16]} 13. Bd2 {[%emt 0:03:45]} Qb6 {[%emt 0:02:41]} 14. e4 {[%emt 0:02:31]} Nf6 {[%emt 0:07:18]} 15. Bc3 {[%emt 0:01:18]} Rad8 {[%emt 0:01:51]} 16. Qd2 {[%emt 0:09:54]} Be6 {[%emt 0:02:39]} 17. Ba5 {[%emt 0:04:56]} Qb5 {[%emt 0:07:47]} 18. Bxd8 {[%emt 0:01:04]} Rxd8 {[%emt 0:00:07]} 19. a4 {[%emt 0:04:49]} Qb6 {[%emt 0:02:14]} 20. Rad1 {[%emt 0:02:23]} Ne8 {[%emt 0:08:45]} 21. Qe3 {[%emt 0:05:07]} Bb3 {[%emt 0:05:05]} 22. Rd2 {[%emt 0:01:12]} Nd6 {[%emt 0:03:00]} 23. Qc3 {[%emt 0:01:12]} Bxa4 {[%emt 0:04:15]} 24. Qc5 {[%emt 0:00:45]} Qc7 {[%emt 0:04:27]} 25. Qxa7 {[%emt 0:00:35]} Bb5 {[%emt 0:00:10]} 26. d5 {[%emt 0:00:47]} Nc4 {[%emt 0:01:50]} 27. Rc2 {[%emt 0:01:00]} Nxb2 {[%emt 0:01:05]} 28. dxc6 {[%emt 0:01:03]} Bxc6 {[%emt 0:02:09]} 29. Rb1 {[%emt 0:00:26]} Nd3 {[%emt 0:01:27]} 30. Bf1 {[%emt 0:01:28]} Ne5 {[%emt 0:01:08]} 31. Nxe5 {[%emt 0:00:21]} Qxe5 {[%emt 0:00:35]} 32. Bg2 {[%emt 0:01:39]} f5 {[%emt 0:08:44]} 33. Qe3 {[%emt 0:01:42]} fxe4 {[%emt 0:02:29]} 34. Re2 {[%emt 0:00:37]} Rd7 {[%emt 0:05:51]} 35. Bxe4 {[%emt 0:00:49]} Bxe4 {[%emt 0:00:05]} 36. Qxe4 {[%emt 0:00:06]} Qxe4 {[%emt 0:00:12]} 37. Rxe4 {[%emt 0:00:03]} Bd4 {[%emt 0:00:20]} 38. Kf1 {[%emt 0:00:27]} Bc5 {[%emt 0:00:04]} 39. Ke2 {[%emt 0:01:48]} Kf7 {[%emt 0:00:29]} 40. h4 {[%emt 0:02:23]} b6 {[%emt 0:00:38]} 41. Kf3 {[%emt 0:06:01]} Rd2 {[%emt 0:03:02]} 42. Re2 {[%emt 0:05:53]} Rxe2 {[%emt 0:00:09]} 43. Kxe2 {[%emt 0:00:05]} Kf6 {[%emt 0:00:49]} 44. Kf3 {[%emt 0:02:56]} Kf5 {[%emt 0:05:21]} 45. g4+ {[%emt 0:05:37]} Kf6 {[%emt 0:00:16]} 46. Ke4 {[%emt 0:03:18]} h6 {[%emt 0:02:53]} 47. f4 {[%emt 0:01:54]} Ke6 {[%emt 0:01:44]} 48. Rb2 {[%emt 0:02:06]} Kf7 {[%emt 0:01:00]} 49. Rg2 {[%emt 0:01:25]} Bd6 {[%emt 0:00:54]} 50. h5 {[%emt 0:00:55]} b5 {[%emt 0:00:35]} 51. f5 {[%emt 0:01:29]} g5 {[%emt 0:00:19]} 52. Kd5 {[%emt 0:00:18]} b4 {[%emt 0:00:33]} 53. Re2 {[%emt 0:00:22]} Kg7 {[%emt 0:00:46]} 54. Re6 {[%emt 0:01:12]} b3 {[%emt 0:02:08]} 55. Re3 {[%emt 0:01:21]} b2 {[%emt 0:00:42]} 56. Rb3 {[%emt 0:00:06]} Ba3 {[%emt 0:00:01]} 57. Ke6 {[%emt 0:00:28]} Bc5 {[%emt 0:01:39]} 58. Rxb2 {[%emt 0:01:04]} Bd4 {[%emt 0:00:05]} 59. Rb7 {[%emt 0:00:18]} 1-0